fUSD/lending_fUSD_20240822
["ID","MTS","AMOUNT","RATE_DAILY","PERIOD"]
[335566028,1724335849576,-752.65,0.00010999,2]
[335566029,1724335849585,-752.65,0.00010999,2]
[335566030,1724335849595,-752.85,0.00010999,2]
[335566031,1724335849604,-500.0,0.00010999,2]
[335566032,1724335849614,-500.0,0.00010999,2]
[335566033,1724335849623,-500.0,0.00010999,2]
[335566034,1724335849633,-500.0,0.00010999,2]
[335566035,1724335849642,-500.0,0.00010999,2]
[335566036,1724335849652,-500.0,0.00010999,2]
[335566037,1724335849661,-318.16,0.00010999,2]
[335566038,1724335849671,-500.0,0.00010999,2]
[335566039,1724335849680,-500.0,0.00010999,2]
[335566040,1724335849689,-500.0,0.00010999,2]
[335566041,1724335849699,-500.0,0.00010999,2]
[335566042,1724335849709,-260.32726029,0.00010999,2]
[335566043,1724335849723,-500.0,0.00010999,2]
[335566044,1724335849733,-500.0,0.00010999,2]
[335566045,1724335849743,-500.0,0.00010999,2]
[335566046,1724335849752,-435.9,0.00010999,2]
[335566047,1724335849762,-755.08,0.00010999,2]
[335566048,1724335849772,-755.08,0.00010999,2]
[335566049,1724335849781,-755.08,0.00010999,2]
[335566050,1724335849795,-755.08,0.00010999,2]
[335566051,1724335849804,-755.08,0.00010999,2]
[335566052,1724335849814,-755.08,0.00010999,2]
[335566053,1724335849824,-755.08,0.00010999,2]
[335566054,1724335849834,-755.08,0.00010999,2]
[335566055,1724335849844,-755.08,0.00010999,2]
[335566056,1724335849854,-755.08,0.00010999,2]
[335566057,1724335849865,-755.26,0.00010999,2]
[335566058,1724335849875,-878.1,0.00010999,2]
[335566059,1724335849886,-878.1,0.00010999,2]
[335566060,1724335849896,-878.1,0.00010999,2]
[335566061,1724335849905,-878.1,0.00010999,2]
[335566062,1724335849915,-878.1,0.00010999,2]
[335566063,1724335849924,-878.1,0.00010999,2]
[335566064,1724335849934,-878.1,0.00010999,2]
[335566065,1724335849944,-878.1,0.00010999,2]
[335566066,1724335849954,-878.1,0.00010999,2]
[335566067,1724335849964,-878.1,0.00010999,2]
[335566068,1724335849975,-878.3,0.00010999,2]
[335566069,1724335849985,-707.79,0.00010999,2]
[335566070,1724335849995,-707.79,0.00010999,2]
[335566071,1724335850004,-707.79,0.00010999,2]
[335566072,1724335850014,-707.79,0.00010999,2]
[335566073,1724335850024,-707.79,0.00010999,2]
[335566074,1724335850034,-707.79,0.00010999,2]
[335566075,1724335850043,-707.79,0.00010999,2]
[335566076,1724335850053,-707.79,0.00010999,2]
[335566077,1724335850063,-707.79,0.00010999,2]
[335566078,1724335850073,-707.79,0.00010999,2]
[335566079,1724335850082,-707.89,0.00010999,2]
[335566080,1724335850092,-788.72,0.00010999,2]
[335566081,1724335850102,-788.72,0.00010999,2]
[335566082,1724335850112,-788.72,0.00010999,2]
[335566083,1724335850121,-788.72,0.00010999,2]
[335566084,1724335850131,-788.72,0.00010999,2]
[335566085,1724335850141,-788.72,0.00010999,2]
[335566086,1724335850150,-788.72,0.00010999,2]
[335566087,1724335850160,-788.72,0.00010999,2]
[335566088,1724335850169,-788.72,0.00010999,2]
[335566089,1724335850179,-788.72,0.00010999,2]
[335566090,1724335850188,-788.77,0.00010999,2]
[335566091,1724335850199,-500.0,0.00010999,2]
[335566092,1724335850208,-500.0,0.00010999,2]
[335566093,1724335850220,-500.0,0.00010999,2]
[335566094,1724335850236,-500.0,0.00010999,2]
[335566095,1724335850245,-630.95,0.00010999,2]
[335566096,1724335850254,-500.0,0.00010999,2]
[335566097,1724335850263,-500.0,0.00010999,2]
[335566098,1724335850273,-500.0,0.00010999,2]
[335566099,1724335850282,-399.34,0.00010999,2]
[335566100,1724335850291,-813.5,0.00010999,2]
[335566101,1724335850300,-813.5,0.00010999,2]
[335566102,1724335850308,-813.5,0.00010999,2]
[335566103,1724335850318,-813.5,0.00010999,2]
[335566104,1724335850327,-813.5,0.00010999,2]
[335566105,1724335850335,-813.5,0.00010999,2]
[335566106,1724335850344,-813.5,0.00010999,2]
[335566107,1724335850355,-813.5,0.00010999,2]
[335566108,1724335850363,-813.5,0.00010999,2]
[335566109,1724335850372,-813.5,0.00010999,2]
[335566110,1724335850382,-813.64,0.00010999,2]
[335566111,1724335850390,-500.0,0.00010999,2]
[335566112,1724335850397,-500.0,0.00010999,2]
[335566113,1724335850407,-500.0,0.00010999,2]
[335566114,1724335850415,-500.0,0.00010999,2]
[335566115,1724335850422,-544.15,0.00010999,2]
[335566116,1724335850429,-883.06,0.00010999,2]
[335566117,1724335850436,-883.06,0.00010999,2]
[335566118,1724335850443,-883.06,0.00010999,2]
[335566119,1724335850452,-883.06,0.00010999,2]
[335566120,1724335850462,-883.06,0.00010999,2]
[335566121,1724335850475,-883.06,0.00010999,2]
[335566122,1724335850484,-883.06,0.00010999,2]
[335566123,1724335850493,-883.06,0.00010999,2]
[335566124,1724335850503,-883.06,0.00010999,2]
[335566125,1724335850512,-883.06,0.00010999,2]
[335566126,1724335850521,-883.24,0.00010999,2]
[335566127,1724335850531,-500.0,0.00010999,2]
[335566128,1724335850541,-500.0,0.00010999,2]
[335566129,1724335850550,-451.69,0.00010999,2]
[335566130,1724335850560,-500.0,0.00010999,2]
[335566131,1724335850569,-500.0,0.00010999,2]
[335566132,1724335850579,-500.0,0.00010999,2]
[335566133,1724335850588,-500.0,0.00010999,2]
[335566134,1724335850598,-500.0,0.00010999,2]
[335566135,1724335850607,-292.8067,0.00010999,2]
[335566136,1724335850616,-500.0,0.00010999,2]
[335566137,1724335850625,-500.0,0.00010999,2]
[335566138,1724335850635,-500.0,0.00010999,2]
[335566139,1724335850644,-500.0,0.00010999,2]
[335566140,1724335850653,-500.0,0.00010999,2]
[335566141,1724335850662,-490.0,0.00010999,2]
[335566142,1724335850672,-500.0,0.00010999,2]
[335566143,1724335850681,-500.0,0.00010999,2]
[335566144,1724335850690,-500.0,0.00010999,2]
[335566145,1724335850700,-500.0,0.00010999,2]
[335566146,1724335850710,-500.0,0.00010999,2]
[335566147,1724335850723,-500.0,0.00010999,2]
[335566148,1724335850732,-207.59,0.00010999,2]
[335566149,1724335850742,-502.3,0.00010999,2]
[335566150,1724335850751,-502.3,0.00010999,2]
[335566151,1724335850761,-502.3,0.00010999,2]
[335566152,1724335850770,-502.3,0.00010999,2]
[335566153,1724335850780,-502.3,0.00010999,2]
[335566154,1724335850790,-502.3,0.00010999,2]
[335566155,1724335850802,-502.3,0.00010999,2]
[335566156,1724335850811,-502.42,0.00010999,2]
[335566157,1724335850821,-500.0,0.00010999,2]
[335566158,1724335850830,-500.0,0.00010999,2]
[335566159,1724335850840,-500.0,0.00010999,2]
[335566160,1724335850849,-500.0,0.00010999,2]
[335566161,1724335850859,-833.33,0.00010999,2]
[335566162,1724335850868,-833.33,0.00010999,2]
[335566163,1724335850879,-833.33,0.00010999,2]
[335566164,1724335850888,-833.33,0.00010999,2]
[335566165,1724335850898,-833.33,0.00010999,2]
[335566166,1724335850908,-833.33,0.00010999,2]
[335566167,1724335850917,-533.78941082,0.00010999,2]
[335566168,1724335851199,-299.54058918,0.00010999,2]
[335566169,1724335851209,-523.98599913,0.00010999,2]
[335566170,1724335851227,-309.34400087,0.00010999,2]
[335566171,1724335851236,-833.33,0.00010999,2]
[335566172,1724335851245,-76.16127913,0.00010999,2]
[335566173,1724335851330,-653.75012531,0.00010999,2]
[335566174,1724335851343,-103.41859556,0.00010999,2]
[335566175,1724335851354,-160.64981199,0.00010999,2]
[335566176,1724335851365,-300.40043,0.00010999,2]
[335566177,1724335851376,-372.27975801,0.00010999,2]
[335566178,1724335851385,-75.82382573,0.00010999,2]
[335566179,1724335851408,-757.50617427,0.00010999,2]
[335566180,1724335851418,-270.09487896,0.00010999,2]
[335566181,1724335867732,314.69942624,0.00017,120]
[335566188,1724335909872,500.0,0.00027,120]
[335566189,1724335917717,209.79961749,0.00017,120]
[335566190,1724335917993,297.93,0.00025,60]
[335566191,1724335940898,163.04,9.761e-05,2]
[335566192,1724335947749,500.0,0.00027,120]
[335566193,1724335954390,412.07,0.00027,120]
[335566194,1724335960730,500.0,0.00027,120]
[335566195,1724335963934,155.0,0.00020606,60]
[335566196,1724335967712,174.83301458,0.00020606,120]
[335566197,1724335984744,311.28958999,0.00024499,60]
[335566198,1724335992940,157.32,0.00017798,120]
[335566199,1724335993414,756.0,0.00017798,120]
[335566200,1724335993465,154.64,0.00017798,120]
[335566201,1724335993904,756.0,0.00017788,120]
[335566202,1724335994406,756.0,0.00017778,120]
[335566203,1724335994956,756.0,0.00017798,120]
[335566204,1724335995384,756.0,0.00017788,120]
[335566205,1724335995860,756.0,0.00017778,120]
[335566206,1724335996338,756.0,0.00017798,120]
[335566207,1724335996823,756.0,0.00017788,120]
[335566208,1724335997345,-666.83451136,0.00018,30]
[335566209,1724335997454,-201.0,0.0002812,30]
[335566210,1724335997486,-203.0,0.0002812,30]
[335566211,1724335997521,-201.0,0.0002916,30]
[335566212,1724335997554,-203.0,0.0002916,30]
[335566213,1724335997597,-987.42379253,0.0003,30]
[335566214,1724335997629,-151.0,0.0003,120]
[335566215,1724335997664,-151.0,0.0003,120]
[335566216,1724335997696,-201.0,0.0003019,30]
[335566217,1724335997728,-203.0,0.0003019,30]
[335566218,1724335997758,-11561.02833083,0.00030192,30]
[335566219,1724335997789,-1060.87744263,0.00030192,30]
[335566220,1724335997845,-150.0,0.00030237,120]
[335566221,1724335997877,-548.0,0.00030613,30]
[335566222,1724335997911,-151.0,0.00030959,120]
[335566223,1724335997942,-150.0,0.00031557,120]
[335566224,1724335997972,-151.0,0.00031918,120]
[335566225,1724335998002,-790.49423871,0.00032,120]
[335566226,1724335998031,-150.386367,0.00032,60]
[335566227,1724335998062,-150.386367,0.00032691,30]
[335566228,1724335998093,-223257.83421618,0.000328,30]
[335566229,1724335998122,-203.0,0.000328,30]
[335566230,1724335998152,-201.0,0.000328,30]
[335566231,1724335998182,-201.0,0.000328,30]
[335566232,1724335998212,-2632.89,0.00032876,120]
[335566233,1724335998242,-2632.89,0.00032876,120]
[335566234,1724335998272,-2632.89,0.00032876,120]
[335566235,1724335998303,-2632.89,0.00032876,120]
[335566236,1724335998333,-2632.89,0.00032876,120]
[335566237,1724335998366,-2632.89,0.00032876,120]
[335566238,1724335998395,-2632.89,0.00032876,120]
[335566239,1724335998426,-2632.89,0.00032876,120]
[335566240,1724335998455,-2632.89,0.00032876,120]
[335566241,1724335998486,-2632.89,0.00032876,120]
[335566242,1724335998516,-2632.89,0.00032876,120]
[335566243,1724335998546,-2632.89,0.00032876,120]
[335566244,1724335998574,-2632.89,0.00032876,120]
[335566245,1724335998602,-2632.89,0.00032876,120]
[335566246,1724335998631,-2632.89,0.00032876,120]
[335566247,1724335998663,-2632.89,0.00032876,120]
[335566248,1724335998692,-2632.89,0.00032876,120]
[335566249,1724335998721,-2632.89,0.00032876,120]
[335566250,1724335998754,-2632.89,0.00032876,120]
[335566251,1724335998784,-2632.89,0.00032876,120]
[335566252,1724335998813,-2632.89,0.00032876,120]
[335566253,1724335998842,-2632.89,0.00032876,120]
[335566254,1724335998872,-2632.89,0.00032876,120]
[335566255,1724335998906,-2632.98354439,0.00032876,120]
[335566256,1724335998937,-151.0,0.00032877,120]
[335566257,1724335998967,-855.26306221,0.000329,30]
[335566258,1724335998997,-5000.0,0.000329,30]
[335566259,1724335999028,-160.78888486,0.00033,120]
[335566260,1724335999061,-1000000.0,0.00033,60]
[335566261,1724335999092,-1000000.0,0.00033,60]
[335566262,1724335999122,-1000000.0,0.00033,60]
[335566263,1724335999157,-1000000.0,0.00033,60]
[335566264,1724335999187,-900.0,0.00033,34]
[335566265,1724335999218,-373.63238732,0.00033,60]
[335566266,1724335999249,-11397.56,0.00033151,120]
[335566267,1724335999280,-2512.67319637,0.00033192,30]
[335566268,1724335999310,-3151.65,0.00033391,30]
[335566269,1724335999343,-916.74,0.000335,31]
[335566270,1724335999376,-916.74,0.000335,31]
[335566271,1724335999411,-916.74,0.000335,31]
[335566272,1724335999445,-916.74,0.000335,31]
[335566273,1724335999481,-916.74,0.000335,31]
[335566274,1724335999514,-916.74,0.000335,31]
[335566275,1724335999549,-916.74,0.000335,31]
[335566276,1724335999584,-916.74,0.000335,31]
[335566277,1724335999618,-916.74,0.000335,31]
[335566278,1724335999652,-916.74,0.000335,31]
[335566279,1724335999684,-916.74,0.000335,31]
[335566280,1724335999720,-916.74,0.000335,31]
[335566281,1724335999752,-970.86,0.000335,30]
[335566282,1724335999785,-768.0,0.00033674,30]
[335566283,1724335999819,-151.0,0.00033836,120]
[335566284,1724335999854,-2043.30676055,0.00034,30]
[335566285,1724335999891,-500.0,0.00034,120]
[335566286,1724335999926,-654979.66689806,0.00034,60]
[335566287,1724335999970,756.0,0.00017798,120]
[335566288,1724336000017,757.74,0.00017788,120]
[335566289,1724336007581,-246.45,0.00027397,30]
[335566290,1724336007615,-246.45,0.00027534,30]
[335566291,1724336007646,-246.45,0.00027671,30]
[335566292,1724336007676,-246.45,0.00027808,30]
[335566293,1724336007709,-246.45,0.00027945,30]
[335566294,1724336007741,-500.0,0.00028035,120]
[335566295,1724336007817,-345020.33310194,0.00034,60]
[335566296,1724336007852,-1000000.0,0.00034,60]
[335566297,1724336007883,-1555.94801663,0.00034,120]
[335566298,1724336007917,-900.0,0.00034,35]
[335566299,1724336007948,-31325.05464321,0.00034,30]
[335566300,1724336007979,-1285.21217506,0.000345,120]
[335566301,1724336008011,-2512.67319637,0.00034692,30]
[335566302,1724336008042,-151.0,0.00034795,120]
[335566303,1724336008071,-17030.49339,0.000348,30]
[335566304,1724336008102,-15097.48366205,0.000349,30]
[335566305,1724336008133,-76797.31066744,0.00035,30]
[335566306,1724336008164,-2000.0,0.00035,120]
[335566307,1724336008194,-150.0,0.00035,30]
[335566308,1724336008224,-1221.0,0.00035,60]
[335566309,1724336008254,-20322.14996869,0.00035,30]
[335566310,1724336008283,-351900.61664291,0.00035,30]
[335566311,1724336008314,-168.41086813,0.00035,120]
[335566312,1724336008345,-3798.41079471,0.00035,120]
[335566313,1724336008375,-22707.32452,0.00035,30]
[335566314,1724336008407,-900.0,0.00035,36]
[335566315,1724336008439,-542.31120451,0.00035,90]
[335566316,1724336008471,-155.52336,0.00035,30]
[335566317,1724336008502,-155.52336,0.00035,30]
[335566318,1724336008530,-155.52336,0.00035,30]
[335566319,1724336008564,-184.97443247,0.00035,90]
[335566320,1724336008597,-1000.0,0.00035,30]
[335566321,1724336008627,-3000.0,0.00035,30]
[335566322,1724336008659,-1000.0,0.00035,30]
[335566323,1724336008688,-30000.0,0.000355,120]
[335566324,1724336008717,-28384.15565,0.000355,30]
[335566325,1724336008747,-34060.986781,0.000356,30]
[335566326,1724336008775,-40400.0,0.000357,120]
[335566327,1724336008936,-34060.986781,0.000357,30]
[335566328,1724336008969,-151.0,0.00035753,120]
[335566329,1724336008999,-39737.817911,0.000358,30]
[335566330,1724336009029,-34060.986781,0.0003582,30]
[335566331,1724336009063,-900.0,0.00036,37]
[335566332,1724336009096,-423.67004443,0.00036,120]
[335566333,1724336009130,-2000.0,0.00036,120]
[335566334,1724336009170,-10000.0,0.00036,120]
[335566335,1724336009201,-150557.0,0.00036,30]
[335566336,1724336009231,-1540.01716073,0.00036,120]
[335566337,1724336009262,-151.0,0.00036,120]
[335566338,1724336009292,-3355.0,0.00036114,54]
[335566339,1724336009320,-2512.67319637,0.00036192,30]
[335566340,1724336009351,-940.0,0.000365,30]
[335566341,1724336009381,-3151.65,0.00036552,30]
[335566342,1724336009414,-151.0,0.00036712,120]
[335566343,1724336009443,-4419.9887,0.000368,30]
[335566344,1724336009473,-1042355.63160323,0.000368,60]
[335566345,1724336009503,-1000.0,0.00037,30]
[335566346,1724336009533,-275.64924499,0.00037035,40]
[335566347,1724336009565,-472.67801249,0.00037035,40]
[335566348,1724336009596,-247.17469917,0.00037035,40]
[335566349,1724336009628,-798.5930112,0.00037035,40]
[335566350,1724336009658,-1075.0,0.00037042,30]
[335566351,1724336009690,-505890.0,0.0003742,30]
[335566352,1724336009722,-151.0,0.00037671,120]
[335566353,1724336009753,-2512.67319637,0.00037692,30]
[335566354,1724336009783,-295.80772665,0.00037999,120]
[335566355,1724336009815,-150.0,0.00038,60]
[335566356,1724336009846,-2000.0,0.00038,120]
[335566357,1724336009878,-755.67765929,0.00038,120]
[335566358,1724336009913,-2000.0,0.00038,120]
[335566359,1724336009943,-55184.51010142,0.00038,30]
[335566360,1724336009973,-10000.0,0.00038,30]
[335566361,1724336010004,-481.49193289,0.00038,120]
[335566362,1724336010034,-4001.3739,0.00038,90]
[335566363,1724336010063,-858.0,0.00038,60]
[335566364,1724336010092,-404.7966,0.00038,90]
[335566365,1724336010121,-157.98520598,0.00038,120]
[335566366,1724336010150,-450.6409,0.00038,90]
[335566367,1724336010179,-459.1709,0.00038,90]
[335566368,1724336010208,-427.5143,0.00038,90]
[335566369,1724336010237,-458.2641,0.00038,90]
[335566370,1724336010267,-3298.76094873,0.00038,30]
[335566371,1724336010297,-11000.0,0.00038,30]
[335566372,1724336010326,-2802.00848811,0.00038,120]
[335566373,1724336010356,-1057.89832448,0.00038,120]
[335566374,1724336010387,-1237.13917094,0.000384,33]
[335566375,1724336010418,-161.98156422,0.000384,33]
[335566376,1724336010447,-4043.75605437,0.000384,33]
[335566377,1724336010476,-151.73503616,0.000384,33]
[335566378,1724336010505,-162.016293,0.000384,33]
[335566379,1724336010533,-158.22411652,0.000384,33]
[335566380,1724336010562,-4705.33866479,0.000384,120]
[335566381,1724336010592,-4563.0,0.000384,30]
[335566382,1724336010620,-1010067.04787535,0.0003844,30]
[335566383,1724336014722,-246.45,0.00028082,30]
[335566384,1724336014757,-246.45,0.00028219,30]
[335566385,1724336014789,-246.45,0.00028356,30]
[335566386,1724336014820,-246.45,0.00028493,30]
[335566387,1724336014855,-246.45,0.0002863,30]
[335566388,1724336014888,-246.45,0.00028767,30]
[335566389,1724336014924,-246.45,0.00028904,30]
[335566390,1724336014957,-246.45,0.00029041,30]
[335566391,1724336014989,-246.45,0.00029178,30]
[335566392,1724336015026,-246.45,0.00029315,30]
[335566393,1724336015057,-246.45,0.00029452,30]
[335566394,1724336015088,-246.45,0.00029589,30]
[335566395,1724336015260,-246.45,0.00029726,30]
[335566396,1724336015291,-246.45,0.00029863,30]
[335566397,1724336015321,-246.45,0.00029999,30]
[335566398,1724336015358,-246.45,0.00030136,30]
[335566399,1724336015410,-246.45,0.00030273,30]
[335566400,1724336015441,-246.45,0.0003041,30]
[335566401,1724336015473,-246.46559666,0.00030547,30]
[335566402,1724336015509,-150.0,0.00033541,120]
[335566403,1724336015548,-569932.95212465,0.0003844,30]
[335566404,1724336015578,-11000.0,0.000385,35]
[335566405,1724336015609,-151.0,0.0003863,120]
[335566406,1724336015639,-318.967575,0.00038799,120]
[335566407,1724336015670,-15355.94145634,0.000388,30]
[335566408,1724336015699,-5596.48354077,0.0003888,90]
[335566409,1724336015732,-52420.1952932,0.000389,30]
[335566410,1724336015765,-15097.48366205,0.000389,45]
[335566411,1724336015798,-734.0457269,0.000389,30]
[335566412,1724336015837,-151.082105,0.00038948,119]
[335566413,1724336015873,-160.0,0.00039,30]
[335566414,1724336015908,-920.20825128,0.00039,120]
[335566415,1724336015943,-500.0,0.00039,120]
[335566416,1724336015975,-2000.0,0.00039,120]
[335566417,1724336016007,-10000.0,0.00039,120]
[335566418,1724336016038,-8753.16585064,0.00039,120]
[335566419,1724336016074,-930.0,0.00039,120]
[335566420,1724336016106,-8659.37708316,0.00039,120]
[335566421,1724336016139,-337.0,0.00039,120]
[335566422,1724336016172,-7882.2980632,0.00039,120]
[335566423,1724336016205,-151.082105,0.00039048,119]
[335566424,1724336016237,-26391.15368306,0.000391,30]
[335566425,1724336016269,-94176.11082857,0.00039148,119]
[335566426,1724336016300,-2512.67319637,0.00039192,30]
[335566427,1724336016333,-151.082105,0.00039248,119]
[335566428,1724336016366,-3000.0,0.00039316,120]
[335566429,1724336016402,-151.082105,0.00039348,119]
[335566430,1724336016434,-569.59081997,0.000394,30]
[335566431,1724336016466,-1642000.0,0.000394,30]
[335566432,1724336016498,-4810.64911723,0.000394,120]
[335566433,1724336016530,-151.082105,0.00039448,119]
[335566434,1724336016561,-3661.2,0.00039529,74]
[335566435,1724336016593,-200.0,0.00039582,120]
[335566436,1724336016623,-151.0,0.00039589,120]
[335566437,1724336016655,-3113.11076228,0.000397,120]
[335566438,1724336016686,-3151.65,0.00039713,120]
[335566439,1724336016718,-14974.0,0.000398,120]
[335566440,1724336016748,-1412.18476048,0.000398,120]
[335566441,1724336016778,-408.05717994,0.00039896,90]
[335566442,1724336016808,-3459.45225103,0.00039898,120]
[335566443,1724336016842,-547.54786826,0.00039898,90]
[335566444,1724336016875,-746.08514633,0.00039898,90]
[335566445,1724336016905,-82161.965273,0.000399,60]
[335566446,1724336016936,-3892.34869461,0.000399,120]
[335566447,1724336016967,-16473.17011301,0.000399,30]
[335566448,1724336016997,-410.0,0.00039986,90]
[335566449,1724336017027,-490.0,0.0003999,120]
[335566450,1724336017059,-1641.59877469,0.0003999,120]
[335566451,1724336017089,-250.0,0.00039999,30]
[335566452,1724336017122,-50000.0,0.0004,30]
[335566453,1724336017154,-50000.0,0.0004,40]
[335566454,1724336017186,-477.12749073,0.0004,30]
[335566455,1724336017216,-1483.8387709,0.0004,30]
[335566456,1724336017247,-1167.53390099,0.0004,120]
[335566457,1724336017277,-2476.6353347,0.0004,30]
[335566458,1724336017307,-701.46893915,0.0004,30]
[335566459,1724336017336,-4000.0,0.0004,65]
[335566460,1724336017367,-2936.10400976,0.0004,30]
[335566461,1724336017397,-3742.27384897,0.0004,120]
[335566462,1724336017427,-2000.0,0.0004,120]
[335566463,1724336017456,-334.39,0.0004,120]
[335566464,1724336017485,-383.0,0.0004,60]
[335566465,1724336017515,-2500.0,0.0004,120]
[335566466,1724336017545,-2500.0,0.0004,120]
[335566467,1724336017574,-2500.0,0.0004,120]
[335566468,1724336017603,-2500.0,0.0004,120]
[335566469,1724336017633,-2500.0,0.0004,120]
[335566470,1724336017664,-2500.0,0.0004,120]
[335566471,1724336017693,-2500.0,0.0004,120]
[335566472,1724336017723,-2500.0,0.0004,120]
[335566473,1724336017754,-2500.0,0.0004,120]
[335566474,1724336017784,-2500.0,0.0004,120]
[335566475,1724336017813,-2500.0,0.0004,120]
[335566476,1724336017842,-2500.0,0.0004,120]
[335566477,1724336017875,-2500.0,0.0004,120]
[335566478,1724336017904,-2500.0,0.0004,120]
[335566479,1724336017936,-445.08802,0.0004,120]
[335566480,1724336017965,-1000.02693103,0.0004,30]
[335566481,1724336017995,-604.34,0.0004,120]
[335566482,1724336018024,-1000.0,0.0004,120]
[335566483,1724336018056,-3141.31,0.0004,30]
[335566484,1724336018086,-150.0,0.0004,120]
[335566485,1724336018117,-1516.0,0.0004,60]
[335566486,1724336018149,-9328.17160856,0.0004,120]
[335566487,1724336018182,-925.9211989,0.0004,30]
[335566488,1724336018334,-380.0,0.0004,60]
[335566489,1724336018369,-5000.0,0.0004,30]
[335566490,1724336018402,-1660.0,0.0004,120]
[335566491,1724336018433,-30498.86674279,0.0004,30]
[335566492,1724336018465,-61274.74584561,0.0004,120]
[335566493,1724336018496,-3517.08055626,0.0004,120]
[335566494,1724336018527,-343.37748427,0.0004,30]
[335566495,1724336018558,-500.0,0.0004,30]
[335566496,1724336018589,-500.0,0.0004,30]
[335566497,1724336018619,-500.0,0.0004,30]
[335566498,1724336018651,-500.0,0.0004,30]
[335566499,1724336018683,-8773.98471887,0.0004,30]
[335566500,1724336018720,-5000.0,0.0004,30]
[335566501,1724336018752,-1426.0,0.0004,120]
[335566502,1724336018783,-8741.28895473,0.0004,120]
[335566503,1724336018814,-3000.0,0.0004,120]
[335566504,1724336018846,-354.0,0.0004,120]
[335566505,1724336018878,-1000.0,0.0004,30]
[335566506,1724336018909,-156.05936982,0.0004,30]
[335566507,1724336018939,-500.0,0.0004,120]
[335566508,1724336018968,-1085.29,0.0004,120]
[335566509,1724336018997,-144827.90182023,0.0004,33]
[335566510,1724336019025,-2000.0,0.0004,120]
[335566511,1724336019054,-12534.0,0.0004,30]
[335566512,1724336019084,-377.0,0.0004,60]
[335566513,1724336019115,-278.0,0.0004,120]
[335566514,1724336019147,-691.0,0.0004,120]
[335566515,1724336019179,-13574.86104544,0.0004,120]
[335566516,1724336019208,-353.0,0.0004,60]
[335566517,1724336019239,-1195.99922159,0.0004,120]
[335566518,1724336019269,-1568.64152241,0.0004,120]
[335566519,1724336019299,-575.57318086,0.0004,120]
[335566520,1724336019330,-329.31634067,0.0004,120]
[335566521,1724336019360,-10000.0,0.0004,120]
[335566522,1724336019390,-350.0,0.0004,30]
[335566523,1724336019421,-133533.41296023,0.0004,30]
[335566524,1724336019450,-63696.99303325,0.0004,30]
[335566525,1724336019479,-239735.3582041,0.0004,30]
[335566526,1724336019511,-699.89203545,0.0004,120]
[335566527,1724336019540,-4081.93366319,0.0004,120]
[335566528,1724336019570,-303.0,0.0004,120]
[335566529,1724336019601,-586.84640521,0.0004,120]
[335566530,1724336019631,-325.61927388,0.0004,45]
[335566531,1724336019662,-166.58716544,0.0004,120]
[335566532,1724336019695,-277.17302876,0.0004,120]
[335566533,1724336019724,-2281.83207619,0.0004,120]